fUSD/lending_fUSD_20250502
["ID","MTS","AMOUNT","RATE_DAILY","PERIOD"]
[359603782,1746178630009,-758.53,0.00045463,60]
[359603783,1746178630032,-2000.0,0.00045463,31]
[359603784,1746178630058,-539.83,0.00045463,60]
[359603785,1746178630083,-366.8128925,0.00045463,60]
[359603786,1746178630108,-539.83,0.00045463,60]
[359603787,1746178630134,-500.0,0.00045463,60]
[359603788,1746178630159,-579.66,0.00045463,60]
[359603789,1746178630184,-500.0,0.00045463,60]
[359603790,1746178630209,-579.66,0.00045463,60]
[359603791,1746178630235,-539.83,0.00045463,60]
[359603792,1746178630259,-500.0,0.00045463,60]
[359603793,1746178630283,-579.66,0.00045463,60]
[359603794,1746178630308,-3188.2,0.00045463,30]
[359603795,1746178630334,-500.0,0.00045463,60]
[359603796,1746178630359,-579.66,0.00045463,60]
[359603797,1746178630385,-500.0,0.00045463,60]
[359603798,1746178630410,-579.66,0.00045463,60]
[359603799,1746178630437,-164211.88807844,0.00045463,120]
[359603800,1746178630467,-539.83,0.00045463,60]
[359603801,1746178630495,-539.83,0.00045463,60]
[359603802,1746178630520,-500.0,0.00045463,60]
[359603803,1746178630544,-500.0,0.00045463,60]
[359603804,1746178630570,-619.49,0.00045463,60]
[359603805,1746178630594,-500.0,0.00045463,60]
[359603806,1746178630620,-500.0,0.00045463,60]
[359603807,1746178630647,-619.49,0.00045463,60]
[359603808,1746178630675,-500.0,0.00045463,60]
[359603809,1746178630700,-579.74283335,0.00045463,60]
[359603810,1746178630723,-9996.8,0.00045463,31]
[359603811,1746178630747,-18996.677478,0.00045463,120]
[359603812,1746178630771,-2000.0,0.00045463,30]
[359603813,1746178630794,-2473.0,0.00045463,60]
[359603814,1746178630819,-219.0,0.00045463,120]
[359603815,1746178630843,-10000.0,0.00045463,120]
[359603816,1746178630867,-10000.0,0.00045463,120]
[359603817,1746178630893,-5172.83,0.00045463,60]
[359603818,1746178630921,-5172.83,0.00045463,60]
[359603819,1746178630948,-5172.83,0.00045463,60]
[359603820,1746178631154,-5172.83,0.00045463,60]
[359603821,1746178631181,-5172.83,0.00045463,60]
[359603822,1746178631207,-5172.83,0.00045463,60]
[359603823,1746178631236,-5172.83,0.00045463,60]
[359603824,1746178631265,-5172.83,0.00045463,60]
[359603825,1746178631292,-5172.83,0.00045463,60]
[359603826,1746178631322,-5172.83,0.00045463,60]
[359603827,1746178631348,-5172.83,0.00045463,60]
[359603828,1746178631373,-5172.83,0.00045463,60]
[359603829,1746178631401,-5172.83,0.00045463,60]
[359603830,1746178631427,-5172.83,0.00045463,60]
[359603831,1746178631453,-5172.83,0.00045463,60]
[359603832,1746178631478,-5172.83,0.00045463,60]
[359603833,1746178631505,-5172.83,0.00045463,60]
[359603834,1746178631532,-5172.83,0.00045463,60]
[359603835,1746178631557,-5172.83,0.00045463,60]
[359603836,1746178631583,-5172.83,0.00045463,60]
[359603837,1746178631609,-5172.83,0.00045463,60]
[359603838,1746178631635,-5172.83,0.00045463,60]
[359603839,1746178631660,-5172.83,0.00045463,60]
[359603840,1746178631689,-5172.91,0.00045463,60]
[359603841,1746178631714,-174.0,0.00045463,120]
[359603842,1746178631740,-189.88491522,0.00045463,30]
[359603843,1746178631767,-181.65860367,0.00045463,60]
[359603844,1746178631791,-738.0,0.00045463,120]
[359603845,1746178631817,-9135.0,0.00045463,120]
[359603846,1746178631842,-500.0,0.00045463,60]
[359603847,1746178631869,-399.84291532,0.00045463,60]
[359603848,1746178631894,-190.05683285,0.00045463,60]
[359603849,1746178631919,-5802.19839023,0.00045463,120]
[359603850,1746178631945,-551.92955945,0.00045463,120]
[359603851,1746178631971,-232.0,0.00045463,120]
[359603852,1746178631996,-175.53082028,0.00045463,30]
[359603853,1746178632022,-202.29446074,0.00045463,91]
[359603854,1746178632046,-158.04399409,0.00045463,30]
[359603855,1746178632071,-163.46091151,0.00045463,120]
[359603856,1746178632097,-163.65571546,0.00045463,30]
[359603857,1746178632121,-161.39416704,0.00045463,30]
[359603858,1746178632146,-372.10592435,0.00045463,120]
[359603859,1746178632172,-151.43075182,0.00045463,60]
[359603860,1746178632197,-5153.89200481,0.00045463,60]
[359603861,1746178632222,-1680.22529084,0.00045463,120]
[359603862,1746178632252,-1382.60510061,0.00045463,30]
[359603863,1746178632277,-1720.44272,0.00045463,30]
[359603864,1746178632303,-918.2,0.00045463,120]
[359603865,1746178632328,-590.19,0.00045463,120]
[359603866,1746178632353,-1092.0,0.00045463,120]
[359603867,1746178632377,-1073.0,0.00045463,30]
[359603868,1746178632402,-1073.0,0.00045463,30]
[359603869,1746178632426,-1073.0,0.00045463,30]
[359603870,1746178632451,-1073.0,0.00045463,30]
[359603871,1746178632475,-1073.0,0.00045463,30]
[359603872,1746178632500,-1151.40858188,0.00045463,120]
[359603873,1746178632524,-537.65195276,0.00045463,30]
[359603874,1746178632549,-186517.0,0.00045463,60]
[359603875,1746178632575,-44075.53,0.00045463,30]
[359603876,1746178632599,-38140.3994,0.00045463,30]
[359603877,1746178632626,-1456.16767479,0.00045463,120]
[359603878,1746178632651,-10642.4519652,0.00045463,120]
[359603879,1746178632677,-5368.0,0.00045463,30]
[359603880,1746178632702,-2400.0,0.00045463,120]
[359603881,1746178632727,-5798.64089444,0.00045463,120]
[359603882,1746178632753,-1210.67189048,0.00045463,120]
[359603883,1746178632779,-201950.75023788,0.00045463,60]
[359603884,1746178632804,-657.43959852,0.00045463,120]
[359603885,1746178632829,-142659.84060713,0.00045463,30]
[359603886,1746178632854,-207.69885049,0.00045463,120]
[359603887,1746178632878,-198.05701971,0.00045463,30]
[359603888,1746178632903,-1000.0,0.00045463,120]
[359603889,1746178632927,-1000.0,0.00045463,120]
[359603890,1746178632952,-1000.0,0.00045463,120]
[359603891,1746178632976,-1000.0,0.00045463,120]
[359603892,1746178633001,-1000.0,0.00045463,120]
[359603893,1746178633025,-210.37613638,0.00045463,120]
[359603894,1746178633049,-1387.9362872,0.00045463,120]
[359603895,1746178633073,-350.0,0.00045463,60]
[359603896,1746178647076,-183.5,0.0003058,30]
[359603897,1746178647104,-207.0,0.0003133,30]
[359603898,1746178647134,-207.0,0.0003206,30]
[359603899,1746178647160,-207.0,0.0003279,30]
[359603900,1746178647190,-1007.13138152,0.00032877,30]
[359603901,1746178647216,-178.69,0.00032877,30]
[359603902,1746178647241,-3000.0,0.0003315,60]
[359603903,1746178647267,-500.0,0.00033424,60]
[359603904,1746178647294,-207.0,0.0003352,30]
[359603905,1746178647323,-3000.0,0.00034246,60]
[359603906,1746178647349,-207.0,0.0003425,30]
[359603907,1746178647375,-618.72968812,0.0003452,60]
[359603908,1746178647400,-178.0,0.000346,45]
[359603909,1746178647425,-1225.25916621,0.0003479,120]
[359603910,1746178647453,-207.0,0.0003498,30]
[359603911,1746178647480,-300.0,0.00035,30]
[359603912,1746178647507,-150.011309,0.00035,120]
[359603913,1746178647532,-164.0,0.00035,120]
[359603914,1746178647562,-500.0,0.00035308,60]
[359603915,1746178647587,-502.0,0.00035308,60]
[359603916,1746178647612,-500.0,0.00035308,60]
[359603917,1746178647638,-500.0,0.00035308,60]
[359603918,1746178647661,-613.0,0.00035308,60]
[359603919,1746178647687,-3000.0,0.00035342,60]
[359603920,1746178647719,-696.64,0.000355,31]
[359603921,1746178647748,-696.64,0.000355,31]
[359603922,1746178647777,-696.64,0.000355,31]
[359603923,1746178647805,-696.64,0.000355,31]
[359603924,1746178648198,-696.64,0.000355,31]
[359603925,1746178648231,-696.64,0.000355,31]
[359603926,1746178648262,-696.64,0.000355,31]
[359603927,1746178648295,-696.64,0.000355,31]
[359603928,1746178648328,-696.64,0.000355,31]
[359603929,1746178648364,-696.64,0.000355,31]
[359603930,1746178648394,-696.64,0.000355,31]
[359603931,1746178648423,-696.64,0.000355,31]
[359603932,1746178648450,-160.0,0.000356,48]
[359603933,1746178648475,-1000.0,0.00035616,60]
[359603934,1746178648502,-1000.0,0.00035616,60]
[359603935,1746178648530,-1000.0,0.00035616,60]
[359603936,1746178648555,-1000.0,0.00035616,60]
[359603937,1746178648581,-195.92417578,0.00035616,60]
[359603938,1746178648609,-207.0,0.0003571,30]
[359603939,1746178648635,-20000.0,0.000359,120]
[359603940,1746178648663,-3000.0,0.00036438,60]
[359603941,1746178648689,-160.0,0.000366,51]
[359603942,1746178648715,-884.42612705,0.00036986,60]
[359603943,1746178648743,-284.23159594,0.000372,120]
[359603944,1746178648768,-284.2315959,0.000372,120]
[359603945,1746178648793,-284.2315959,0.000372,120]
[359603946,1746178648819,-284.2315959,0.000372,120]
[359603947,1746178648844,-284.2315959,0.000372,120]
[359603948,1746178648870,-3000.0,0.00037534,60]
[359603949,1746178648896,-160.0,0.000376,54]
[359603950,1746178648921,-801.2263945,0.00037748,30]
[359603951,1746178648947,-1333.0,0.00037753,120]
[359603952,1746178648977,-696.64,0.000379,31]
[359603953,1746178649006,-696.64,0.000379,31]
[359603954,1746178649034,-696.64,0.000379,31]
[359603955,1746178649062,-696.64,0.000379,31]
[359603956,1746178649090,-696.64,0.000379,31]
[359603957,1746178649117,-696.64,0.000379,31]
[359603958,1746178649144,-696.64,0.000379,31]
[359603959,1746178649174,-696.64,0.000379,31]
[359603960,1746178649203,-696.64,0.000379,31]
[359603961,1746178649231,-696.64,0.000379,31]
[359603962,1746178649260,-696.64,0.000379,31]
[359603963,1746178649292,-696.64,0.000379,31]
[359603964,1746178649323,-696.64,0.000379,31]
[359603965,1746178649355,-696.64,0.000379,31]
[359603966,1746178649387,-696.64,0.000379,31]
[359603967,1746178649418,-696.64,0.000379,31]
[359603968,1746178649449,-696.64,0.000379,31]
[359603969,1746178649482,-696.64,0.000379,31]
[359603970,1746178649513,-696.64,0.000379,31]
[359603971,1746178649542,-696.64,0.000379,31]
[359603972,1746178649571,-696.64,0.000379,31]
[359603973,1746178649602,-696.64,0.000379,31]
[359603974,1746178649633,-696.64,0.000379,31]
[359603975,1746178649661,-696.64,0.000379,31]
[359603976,1746178649692,-500.0,0.0003794,30]
[359603977,1746178649720,-500.0,0.00038,30]
[359603978,1746178649746,-501.03936166,0.00038,30]
[359603979,1746178649773,-700.0,0.00038,120]
[359603980,1746178649800,-438.52091249,0.00038,120]
[359603981,1746178649827,-229.9,0.00038,30]
[359603982,1746178649853,-500.0,0.0003806,30]
[359603983,1746178649881,-500.0,0.0003831,30]
[359603984,1746178649908,-2031.067461,0.00038356,90]
[359603985,1746178649936,-160.0,0.000386,57]
[359603986,1746178649963,-3000.0,0.0003863,60]
[359603987,1746178649990,-195297.47346952,0.0003876,30]
[359603988,1746178650027,-500.0,0.00039,30]
[359603989,1746178650054,-2283.4541204,0.00039,40]
[359603990,1746178650080,-544.07032238,0.00039,30]
[359603991,1746178650108,-804.11,0.000392,90]
[359603992,1746178650137,-500.0,0.000395,30]
[359603993,1746178650164,-160.0,0.000396,60]
[359603994,1746178650189,-1524.7252378,0.000397,120]
[359603995,1746178650215,-300.0,0.000397,120]
[359603996,1746178650242,-3000.0,0.00039726,60]
[359603997,1746178650268,-186.53153963,0.000399,30]
[359603998,1746178650297,-50000.0,0.0004,40]
[359603999,1746178650326,-346.04541251,0.0004,30]
[359604000,1746178650353,-10305.49890051,0.0004,30]
[359604001,1746178650380,-500.0,0.0004,30]
[359604002,1746178650407,-1000.0,0.0004,120]
[359604003,1746178650434,-180.0,0.0004,30]
[359604004,1746178650462,-6653.0598691,0.0004,30]
[359604005,1746178650498,-2000.0,0.0004,120]
[359604006,1746178650525,-89065.99892543,0.0004,30]
[359604007,1746178650551,-900.0,0.0004,41]
[359604008,1746178650578,-193.64475558,0.0004,120]
[359604009,1746178650606,-5000.0,0.0004,120]
[359604010,1746178650633,-2156.74094574,0.0004,120]
[359604011,1746178650671,-17594.85587835,0.0004,30]
[359604012,1746178650700,-150.0,0.0004,60]
[359604013,1746178650727,-157.39,0.0004,30]
[359604014,1746178650754,-157.39,0.0004,30]
[359604015,1746178650786,-696.64,0.000403,31]
[359604016,1746178650818,-696.64,0.000403,31]
[359604017,1746178650848,-696.64,0.000403,31]
[359604018,1746178651173,-696.64,0.000403,31]
[359604019,1746178651208,-696.64,0.000403,31]
[359604020,1746178651237,-696.64,0.000403,31]
[359604021,1746178651266,-696.64,0.000403,31]
[359604022,1746178651296,-696.64,0.000403,31]
[359604023,1746178651327,-696.64,0.000403,31]
[359604024,1746178651357,-696.64,0.000403,31]
[359604025,1746178651391,-696.64,0.000403,31]
[359604026,1746178651419,-696.64,0.000403,31]
[359604027,1746178651447,-696.64,0.000403,31]
[359604028,1746178651476,-696.64,0.000403,31]
[359604029,1746178651505,-696.64,0.000403,31]
[359604030,1746178651534,-696.64,0.000403,31]
[359604031,1746178651565,-696.64,0.000403,31]
[359604032,1746178651595,-696.64,0.000403,31]
[359604033,1746178651625,-696.64,0.000403,31]
[359604034,1746178651657,-696.64,0.000403,31]
[359604035,1746178651688,-696.64,0.000403,31]
[359604036,1746178651718,-696.64,0.000403,31]
[359604037,1746178651748,-696.64,0.000403,31]
[359604038,1746178651778,-696.64,0.000403,31]
[359604039,1746178651804,-500.0,0.00040369,30]
[359604040,1746178651831,-3737.72,0.000405,120]
[359604041,1746178651858,-10056.41781156,0.0004054,30]
[359604042,1746178651885,-160.0,0.000406,63]
[359604043,1746178651910,-4997.15801357,0.000408,60]
[359604044,1746178651939,-2962.62722912,0.00040822,60]
[359604045,1746178651967,-472.5408,0.00040888,30]
[359604046,1746178651993,-40000.0,0.000409,30]
[359604047,1746178652022,-50000.0,0.00041,41]
[359604048,1746178652049,-500.0,0.00041,30]
[359604049,1746178652075,-100000.0,0.00041,30]
[359604050,1746178652101,-5000.0,0.00041,120]
[359604051,1746178652127,-900.0,0.00041,42]
[359604052,1746178652155,-163465.62044346,0.00041,30]
[359604053,1746178652182,-4072.0,0.00041,117]
[359604054,1746178652210,-150.5,0.0004107,120]
[359604055,1746178652237,-150.5,0.0004108,120]
[359604056,1746178652263,-472.5408,0.00041088,30]
[359604057,1746178652290,-150.5,0.0004109,120]
[359604058,1746178652315,-254.31900115,0.00041095,120]
[359604059,1746178652341,-300.8,0.00041095,120]
[359604060,1746178652370,-152.0,0.00041096,30]
[359604061,1746178652396,-327.0,0.00041096,30]
[359604062,1746178652422,-256.0,0.00041096,30]
[359604063,1746178652448,-514.0,0.00041096,30]
[359604064,1746178652474,-500.0,0.00041096,30]
[359604065,1746178652500,-500.0,0.00041096,30]
[359604066,1746178652526,-500.0,0.00041096,30]
[359604067,1746178652552,-500.0,0.00041096,30]
[359604068,1746178652593,-500.0,0.00041096,30]
[359604069,1746178652623,-500.0,0.00041096,30]
[359604070,1746178652649,-500.0,0.00041096,30]
[359604071,1746178652678,-157.0,0.00041096,30]
[359604072,1746178652708,-154.0,0.00041096,30]
[359604073,1746178652736,-561.21196023,0.000411,120]
[359604074,1746178652763,-561.21196023,0.000411,120]
[359604075,1746178652789,-561.21196023,0.000411,120]
[359604076,1746178652819,-561.21196023,0.000411,120]
[359604077,1746178652848,-561.21196023,0.000411,120]
[359604078,1746178652877,-561.21196023,0.000411,120]
[359604079,1746178652905,-561.21196023,0.000411,120]
[359604080,1746178652931,-561.21196023,0.000411,120]
[359604081,1746178652958,-561.21196023,0.000411,120]
[359604082,1746178652986,-561.21196023,0.000411,120]
[359604083,1746178653014,-561.21196023,0.000411,120]
[359604084,1746178653042,-561.21196023,0.000411,120]
[359604085,1746178653075,-561.21196023,0.000411,120]
[359604086,1746178653104,-561.21196023,0.000411,120]
[359604087,1746178653133,-561.21196023,0.000411,120]
[359604088,1746178653164,-561.21196023,0.000411,120]
[359604089,1746178653194,-561.21196023,0.000411,120]
[359604090,1746178653225,-561.21196023,0.000411,120]
[359604091,1746178653254,-561.21196023,0.000411,120]
[359604092,1746178653285,-561.21,0.000411,120]
[359604093,1746178653314,-1309.49457387,0.000411,120]
[359604094,1746178653343,-1309.49457387,0.000411,120]
[359604095,1746178653374,-1309.49457387,0.000411,120]
[359604096,1746178653408,-1309.49457387,0.000411,120]
[359604097,1746178653437,-1309.49457387,0.000411,120]
[359604098,1746178653465,-1309.49457387,0.000411,120]
[359604099,1746178653492,-1309.49457387,0.000411,120]
[359604100,1746178653520,-1309.49457387,0.000411,120]
[359604101,1746178653547,-1309.49457387,0.000411,120]
[359604102,1746178653575,-1309.49457387,0.000411,120]
[359604103,1746178653603,-1309.49457387,0.000411,120]
[359604104,1746178653631,-1309.49457387,0.000411,120]
[359604105,1746178653659,-1309.49457387,0.000411,120]
[359604106,1746178653685,-1309.49457387,0.000411,120]
[359604107,1746178653713,-1309.49457387,0.000411,120]
[359604108,1746178653740,-1309.49457387,0.000411,120]
[359604109,1746178653767,-1309.49457387,0.000411,120]
[359604110,1746178653794,-1309.49457387,0.000411,120]
[359604111,1746178653821,-1309.49457387,0.000411,120]
[359604112,1746178654109,-1309.49,0.000411,120]
[359604113,1746178654136,-159.5760006,0.000411,120]
[359604114,1746178654166,-159.5760006,0.000411,120]
[359604115,1746178654192,-159.5760006,0.000411,120]
[359604116,1746178654219,-159.5760006,0.000411,120]
[359604117,1746178654246,-159.5760006,0.000411,120]
[359604118,1746178654272,-159.5760006,0.000411,120]
[359604119,1746178654302,-159.57,0.000411,120]
[359604120,1746178654330,-153.31811822,0.000411,120]
[359604121,1746178654356,-153.31811822,0.000411,120]
[359604122,1746178654382,-153.31811822,0.000411,120]
[359604123,1746178654408,-153.31811822,0.000411,120]
[359604124,1746178654434,-153.31811822,0.000411,120]
[359604125,1746178654459,-153.31811822,0.000411,120]
[359604126,1746178654485,-153.31811822,0.000411,120]
[359604127,1746178654512,-153.31811822,0.000411,120]
[359604128,1746178654537,-153.31811822,0.000411,120]
[359604129,1746178654563,-153.31811822,0.000411,120]
[359604130,1746178654590,-153.31811822,0.000411,120]
[359604131,1746178654615,-153.31811822,0.000411,120]
[359604132,1746178654640,-153.31811822,0.000411,120]
[359604133,1746178654666,-153.31811822,0.000411,120]
[359604134,1746178654691,-153.31811822,0.000411,120]
[359604135,1746178654716,-153.31811822,0.000411,120]
[359604136,1746178654742,-153.31,0.000411,120]
[359604137,1746178654767,-168.37962165,0.000411,120]
[359604138,1746178654794,-168.37962165,0.000411,120]
[359604139,1746178654819,-168.37962165,0.000411,120]
[359604140,1746178654845,-168.37962165,0.000411,120]
[359604141,1746178654870,-168.37,0.000411,120]
[359604142,1746178654896,-151.10991687,0.000411,120]
[359604143,1746178654922,-151.10991687,0.000411,120]
[359604144,1746178654946,-151.10991687,0.000411,120]
[359604145,1746178654971,-151.10991687,0.000411,120]
[359604146,1746178654998,-151.10991687,0.000411,120]
[359604147,1746178655028,-151.10991687,0.000411,120]
[359604148,1746178655058,-151.10991687,0.000411,120]
[359604149,1746178655089,-151.10991687,0.000411,120]
[359604150,1746178655114,-151.10991687,0.000411,120]
[359604151,1746178655140,-151.10991687,0.000411,120]
[359604152,1746178655166,-151.10991687,0.000411,120]
[359604153,1746178655192,-151.10991687,0.000411,120]
[359604154,1746178655218,-151.1,0.000411,120]
[359604155,1746178655244,-150.0,0.00041197,30]
[359604156,1746178655269,-3341.433749,0.00041212,30]
[359604157,1746178655299,-472.5408,0.00041288,30]
[359604158,1746178655326,-150.0,0.00041418,30]
[359604159,1746178655352,-340.68,0.00041452,30]
[359604160,1746178655381,-408.68,0.00041452,30]
[359604161,1746178655408,-472.5408,0.00041488,30]
[359604162,1746178655433,-3500.0,0.000415,120]
[359604163,1746178655461,-160.0,0.000416,66]
[359604164,1746178655487,-150.0,0.0004164,30]
[359604165,1746178655513,-2000.0,0.00041644,120]
[359604166,1746178655541,-472.5408,0.00041688,30]
[359604167,1746178655568,-500.0,0.000417,120]
[359604168,1746178655594,-500.0,0.00041724,30]
[359604169,1746178655622,-178.77541836,0.00041858,30]
[359604170,1746178655648,-150.0,0.00041861,30]
[359604171,1746178655672,-505.46855,0.00041876,120]
[359604172,1746178655700,-2000.0,0.00041876,120]
[359604173,1746178655725,-174.191582,0.00041876,120]
[359604174,1746178655751,-472.5408,0.00041888,30]
[359604175,1746178655783,-236.0,0.0004197,120]
[359604176,1746178655808,-285.0,0.0004197,120]
[359604177,1746178655832,-236.0,0.0004197,120]
[359604178,1746178655857,-285.0,0.0004197,120]
[359604179,1746178655886,-236.0,0.0004198,120]
[359604180,1746178655913,-285.0,0.0004198,120]
[359604181,1746178655939,-236.0,0.0004198,120]
[359604182,1746178655964,-285.0,0.0004198,120]
[359604183,1746178655989,-236.0,0.0004198,120]
[359604184,1746178656015,-285.0,0.0004198,120]
[359604185,1746178656044,-237.33,0.0004198,120]
[359604186,1746178656072,-287.35,0.0004198,120]
[359604187,1746178656100,-236.0,0.0004199,120]
[359604188,1746178656127,-285.0,0.0004199,120]
[359604189,1746178656155,-236.0,0.0004199,120]
[359604190,1746178656181,-285.0,0.0004199,120]
[359604191,1746178656207,-236.0,0.0004199,120]
[359604192,1746178656247,-285.0,0.0004199,120]
[359604193,1746178656279,-236.0,0.0004199,120]
[359604194,1746178656309,-285.0,0.0004199,120]
[359604195,1746178656340,-50000.0,0.00042,42]
[359604196,1746178656369,-1071.25216987,0.00042,30]
[359604197,1746178656397,-1000.0,0.00042,120]
[359604198,1746178656424,-472.38941081,0.00042,120]
[359604199,1746178656451,-357.12337134,0.00042,120]
[359604200,1746178656477,-1515.83,0.00042,120]
[359604201,1746178656502,-900.0,0.00042,43]
[359604202,1746178656533,-152.0,0.00042,30]
[359604203,1746178656559,-1997.022112,0.00042,30]
[359604204,1746178656583,-1048.755868,0.00042,53]
[359604205,1746178656609,-150.0,0.00042083,30]
[359604206,1746178656634,-472.5408,0.00042088,30]
[359604207,1746178656957,-2000.0,0.00042192,120]
[359604208,1746178656985,-472.5408,0.00042288,30]
[359604209,1746178657010,-150.0,0.00042304,30]
[359604210,1746178657035,-33284.16771698,0.0004245,30]
[359604211,1746178657059,-300.8,0.00042465,120]
[359604212,1746178657087,-472.5408,0.00042488,30]
[359604213,1746178657111,-290.0,0.000425,30]
[359604214,1746178657138,-2843.44,0.000425,60]
[359604215,1746178657164,-1963.383,0.000425,64]
[359604216,1746178657190,-150.0,0.00042526,30]
[359604217,1746178657217,-160.0,0.000426,69]
[359604218,1746178657243,-1000.0,0.00042624,31]
[359604219,1746178657268,-472.5408,0.00042688,30]
[359604220,1746178657299,-696.64,0.000427,33]
[359604221,1746178657331,-696.64,0.000427,33]
[359604222,1746178657362,-696.64,0.000427,33]
[359604223,1746178657390,-696.64,0.000427,33]
[359604224,1746178657420,-696.64,0.000427,33]
[359604225,1746178657449,-696.64,0.000427,33]
[359604226,1746178657481,-696.64,0.000427,33]
[359604227,1746178657509,-696.64,0.000427,33]
[359604228,1746178657540,-696.64,0.000427,33]
[359604229,1746178657571,-696.64,0.000427,33]
[359604230,1746178657601,-696.64,0.000427,33]
[359604231,1746178657630,-696.64,0.000427,33]
[359604232,1746178657659,-696.64,0.000427,33]
[359604233,1746178657688,-696.64,0.000427,33]
[359604234,1746178657716,-696.64,0.000427,33]
[359604235,1746178657746,-696.64,0.000427,33]
[359604236,1746178657778,-696.64,0.000427,33]
[359604237,1746178657805,-696.64,0.000427,33]
[359604238,1746178657835,-696.64,0.000427,33]
[359604239,1746178657864,-696.64,0.000427,33]
[359604240,1746178657898,-696.64,0.000427,33]
[359604241,1746178657927,-696.64,0.000427,33]
[359604242,1746178657956,-696.64,0.000427,33]
[359604243,1746178657984,-696.64,0.000427,33]
[359604244,1746178658009,-2000.0,0.0004274,120]
[359604245,1746178658034,-150.0,0.00042747,30]
[359604246,1746178658059,-500.0,0.00042789,30]
[359604247,1746178658085,-196277.56451977,0.000428,120]
[359604248,1746178658110,-472.5408,0.00042888,30]
[359604249,1746178658137,-500.0,0.00042942,30]
[359604250,1746178658163,-150.0,0.00042969,30]
[359604251,1746178658191,-50000.0,0.00043,43]
[359604252,1746178658217,-39380.61,0.00043,60]
[359604253,1746178658242,-889.21,0.00043,120]
[359604254,1746178658267,-62735.39,0.00043,30]
[359604255,1746178658295,-208.8813593,0.00043,120]
[359604256,1746178658325,-900.0,0.00043,44]
[359604257,1746178658352,-7997.40640542,0.00043,120]
[359604258,1746178658379,-152.0,0.00043,30]
[359604259,1746178658405,-411.76,0.00043,120]
[359604260,1746178658431,-741.74,0.00043,120]
[359604261,1746178658456,-4779.52212,0.00043066,30]
[359604262,1746178658483,-862.40987207,0.00043073,30]
[359604263,1746178658510,-472.5408,0.00043088,30]
[359604264,1746178658535,-150.0,0.0004319,30]
[359604265,1746178658561,-1000.0,0.000432,120]
[359604266,1746178658587,-500.0,0.00043216,30]
[359604267,1746178658613,-472.5408,0.00043288,30]
[359604268,1746178658639,-2000.0,0.00043288,120]
[359604269,1746178658663,-2000.0,0.00043376,120]
[359604270,1746178658687,-150.0,0.00043412,30]
[359604271,1746178658712,-500.0,0.00043446,30]
[359604272,1746178658737,-472.5408,0.00043488,30]
[359604273,1746178658763,-500.0,0.0004349,30]
[359604274,1746178658790,-150.0,0.00043578,120]
[359604275,1746178658817,-150.0,0.00043595,120]
[359604276,1746178658844,-160.0,0.000436,72]
[359604277,1746178658869,-22500.0,0.000436,120]
[359604278,1746178658899,-1528.79,0.000436,120]
[359604279,1746178658925,-1632.67,0.000436,120]
[359604280,1746178658952,-248.63,0.000436,120]
[359604281,1746178658978,-277.49,0.000436,120]